Cogmind - Beta 14 @@@ ROGUE MODE // 2025.01.16 @ 23:36:39 Player: PeanutArbuckle Result: Destroyed self with Mini Grenade Launcher Performance ------------- Evolutions (1) 500 Regions Visited (2) 400 Robots Destroyed (22) 110 Value Destroyed (446) 446 Prototype IDs (0) 0 Alien Tech Used (0) 0 Bonus (0) 0 TOTAL SCORE: 1456 Bonus ------- None Cogmind --------- Core Integrity 0/400 Matter 8/300 Energy 100/100 System Corruption 1% Temperature Cool (15) Movement Core (50) Location -9/Materials Parts ------- > --- POWER (2) -------- (None) > --- PROPULSION (3) --- (None) > --- UTILITY (2) ------ (None) > --- WEAPON (2) ------- Mini Grenade Launcher > --- INVENTORY (5) ---- Light EM Pulse Cannon Light EM Pulse Cannon Peak State ------------ > --- POWER ------------ Light Ion Engine > --- PROPULSION ------- Light Treads Light Treads > --- UTILITY ---------- Small Storage Unit > --- WEAPON ----------- EM Shotgun Mini Grenade Launcher > --- INVENTORY -------- Light Ion Engine Light EM Pulse Cannon Light EM Pulse Cannon Grenade Launcher Mini Grenade Launcher Mini Grenade Launcher [Rating: 9] Favorites ----------- Power Light Ion Engine Engine Light Ion Engine Propulsion Light Treads Treads Light Treads Utility Small Storage Unit Storage Small Storage Unit Protection Medium Armor Plating Weapon Mini Grenade Launcher Energy Gun EM Shotgun Energy Cannon Light EM Pulse Cannon Ballistic Gun Heavy Assault Rifle Launcher Mini Grenade Launcher Build | -11 -10 -9 ------- Run | Yrd Mat Mat Slots Evolved 2 | . . 2 Power 1 | . . 1 Propulsion 1 | . . 1 Utility . | . . . Weapon . | . . . Parts Attached 17 | 4 8 5 Power 3 | 1 1 1 Engine 3 | 1 1 1 Core . | . . . Reactor . | . . . Propulsion 2 | 2 . . Treads 2 | 2 . . Leg . | . . . Wheel . | . . . Hover . | . . . Flight . | . . . Utility 2 | 1 . 1 Device . | . . . Storage 1 | 1 . . Processor . | . . . Hackware . | . . . Protection 1 | . . 1 Artifact . | . . . Weapon 10 | . 7 3 Energy Gun 1 | . 1 . Energy Cannon 2 | . 2 . Ballistic Gun 2 | . 1 1 Ballistic Cannon . | . . . Launcher 5 | . 3 2 Special Weapon . | . . . Impact Weapon . | . . . Slashing Weapon . | . . . Piercing Weapon . | . . . Special Melee Weapon . | . . . Unidentified Prototypes . | . . . Parts Lost 5 | . . 5 Power 2 | . . 2 Propulsion . | . . . Utility 2 | . . 2 Weapon 1 | . . 1 Highest Loss Streak 4 | . . 4 To Critical Strikes . | . . . Average Slot Usage (%) 72 | . 84 46 Engine 11 | . 14 7 Treads 22 | . 28 11 Storage 13 | . 14 11 Energy Cannon 2 | . 3 . Ballistic Gun 1 | . . 2 Launcher 18 | . 21 12 Peak Build Rating 9 | 4 9 9 Average Rating 6 | 3 7 5 On Entrance 4 | . 4 8 Naked Turns . | . . . Heaviest Build 19 | 8 16 19 Greatest Support 40 | 40 40 40 Greatest Overweight (x) 6 | . . 6 Average Overweight (x) . | . . . Largest Inventory Capacity 8 | 8 8 8 Average Capacity 7 | 7 8 8 Most Carried 6 | 3 6 6 Average Carried 4 | 1 4 4 Final Capacity 8 | 8 8 5 Final Carried 5 | 2 5 2 Class Distribution -------------------- 100% | Mutant Dominant Class ---------------- Mutant | -10/Materials Mutant | -9/Materials Resources | -11 -10 -9 ----------- Run | Yrd Mat Mat Matter Collected 396 | 222 60 114 Remotely . | . . . Salvage Created 343 | . 166 177 Parts 32 | . 27 5 Haulers Intercepted . | . . . Recyclers Shooed 2 | . 1 1 Parts Field Recycled . | . . . Retrieved Matter . | . . . Parts Self-Destructed . | . . . Prevented . | . . . Kills | -11 -10 -9 ------- Run | Yrd Mat Mat Combat Hostiles Destroyed 12 | . 7 5 AOE 12 | . 7 5 Classes Destroyed 8 | . 5 3 Worker 3 | . 2 1 Builder 5 | . 5 . Recycler 1 | . . 1 Operator 1 | . 1 . Swarmer 3 | . 3 . Grunt 6 | . 4 2 Brawler 1 | . . 1 Sentry 2 | . . 2 Best Kill Streak 5 | . 5 4 Combat Bots Only 3 | . 3 3 Max Kills in Single Turn 3 | . 3 2 Gunslinging . | . . . Exploded 2 | . 2 1 Melee . | . . . Uniques/NPCs Destroyed . | . . . Combat | -11 -10 -9 -------- Run | Yrd Mat Mat Hostile Shots Fired 88 | . 17 71 Missed 25 | . 4 21 Damage Taken 1199 | . 341 858 Core 475 | . 71 404 Absorbed by Shields . | . . . Core Remaining (%) 85 | 100 71 . Volleys Fired 25 | . 17 8 Largest 2 | . 2 2 Hottest 112 | . 112 60 Shots Fired 45 | . 34 11 Gun 3 | . 3 . Cannon 5 | . 5 . Launcher 37 | . 26 11 Special . | . . . Kinetic . | . . . Thermal . | . . . Explosive 37 | . 26 11 Electromagnetic 8 | . 8 . Robot Hit Streak 7 | . 6 7 Robot Miss Streak 5 | . 5 1 Penetration Max . | . . . Secondary Targets . | . . . Shots Hit Robots 17 | . 9 8 Core Hits 35 | . 20 15 Critical Kills . | . . . Critical Parts Destroyed . | . . . Critical Strikes . | . . . Melee Attacks . | . . . Impact . | . . . Slashing . | . . . Piercing . | . . . Sneak Attacks . | . . . Combat Hostiles . | . . . Follow-up Attacks . | . . . Damage Inflicted 1543 | . 1003 540 Guns 18 | . 18 . Cannons 41 | . 41 . Explosions 1461 | . 937 524 Melee . | . . . Ramming 23 | . 7 16 Kinetic . | . . . Thermal . | . . . Explosive 1461 | . 937 524 Electromagnetic 59 | . 59 . Impact . | . . . Slashing . | . . . Piercing . | . . . Highest Corruption 1 | . . 1 Average Corruption 1 | . . 1 Corruption Purged . | . . . Corruption Blocked . | . . . Overload Shots . | . . . Overflow Damage 52 | . 47 5 Projectiles . | . . . Explosions 52 | . 47 5 Melee . | . . . Knockbacks . | . . . Impact . | . . . Kinetic . | . . . Secondary . | . . . Self-Inflicted Damage 362 | . 224 138 Shots 13 | . 7 6 Rammed 8 | . 1 7 Targets Rammed 9 | . 2 7 Kicked . | . . . Crushed 1 | . 1 . Highest Temperature 51 | . 51 42 Average Temperature 22 | . 22 21 Received Heat Transfer 324 | . 24 300 Siege Activations . | . . . Robots Corrupted . | . . . Combat Hostiles . | . . . Parts Fried . | . . . Impact Corruptions . | . . . Robots Melted . | . . . Combat Hostiles . | . . . Parts Melted . | . . . Heat Transferred . | . . . Parts Sabotaged . | . . . Parts Stolen . | . . . Parts Stripped . | . . . Power Chain Reactions . | . . . Alert | -11 -10 -9 ------- Run | Yrd Mat Mat Peak Influence 282 | . 282 227 Initial 62 | . . 62 Average 112 | . 133 96 Maximum Alert Level 1 | . 1 1 Low Security (%) 88 | 100 87 88 Level 1 11 | . 12 11 Level 2 . | . . . Level 3 . | . . . Level 4 . | . . . Level 5 . | . . . High Security . | . . . Max Security . | . . . Squads Dispatched 2 | . 1 1 Investigation . | . . . Extermination . | . . . Reinforcement 2 | . 1 1 Assault . | . . . Garrison . | . . . Intercept . | . . . Searches Triggered . | . . . Construction Impeded 1 | . . 1 Haulers Reinforced . | . . . Active Scanning Responses . | . . . Cargo Convoy Interrupts . | . . . Stealth | -11 -10 -9 --------- Run | Yrd Mat Mat Distress Signals . | . . . Communications Jammed . | . . . Distress Signals . | . . . Times Spotted 17 | . 8 9 Peak Tracking Total 7 | . 3 7 Tactical Retreats 2 | . 1 1 Traps | -11 -10 -9 ------- Run | Yrd Mat Mat Traps Triggered 2 | . . 2 Indirectly . | . . . Trap Hack Attempts . | . . . Triggered . | . . . Disarmed . | . . . Reprogrammed . | . . . Reused . | . . . Traps Extracted . | . . . Installed . | . . . Triggered . | . . . Machines | -11 -10 -9 ---------- Run | Yrd Mat Mat Machines Disabled 1 | . 1 . Max in Single Turn 1 | . 1 . Machines Repaired . | . . . Machines Dismantled . | . . . Machines Sabotaged . | . . . Overloaded Fab Kills . | . . . Hacking | -11 -10 -9 --------- Run | Yrd Mat Mat Machines Accessed . | . . . Terminals . | . . . Fabricators . | . . . Repair Stations . | . . . Recycling Units . | . . . Scanalyzers . | . . . Garrison Access . | . . . Total Hacks . | . . . Successful . | . . . Failed . | . . . Catastrophic . | . . . Database Lockouts . | . . . Manual . | . . . Terminals . | . . . Fabricators . | . . . Repair Stations . | . . . Recycling Units . | . . . Scanalyzers . | . . . Garrison Access . | . . . Terminal Hacks . | . . . Fabricator Hacks . | . . . Repair Station Hacks . | . . . Recycling Unit Hacks . | . . . Scanalyzer . | . . . Garrison Access Hacks . | . . . Unauthorized Hacks . | . . . Terminals . | . . . Fabricators . | . . . Repair Stations . | . . . Recycling Units . | . . . Scanalyzers . | . . . Garrison Access . | . . . Data Cores Recovered . | . . . Used . | . . . Hacking Detections . | . . . Full Trace Events . | . . . Feedback Events . | . . . Feedback Blocked . | . . . Robot Schematics Acquired . | . . . Robots Built . | . . . Authchips . | . . . Time . | . . . Total Robot Build Rating . | . . . Part Schematics Acquired . | . . . Parts Built . | . . . Authchips . | . . . Time . | . . . Total Part Build Rating . | . . . Parts Repaired . | . . . Time . | . . . Parts Recycled . | . . . Recycled Matter . | . . . Retrieved Matter . | . . . Retrieved Components . | . . . Parts Scanalyzed . | . . . Part Schematics Acquired . | . . . Parts Damaged . | . . . Bothacking | -11 -10 -9 ------------ Run | Yrd Mat Mat Used RIF Installer . | . . . Robots Hacked . | . . . Non-combat . | . . . Combat . | . . . Robot Hacks Applied . | . . . Relay Couplers Released . | . . . Fabnet Peak Effective % . | . . . Robots Rewired . | . . . Allies Hacked . | . . . Hacks Repelled . | . . . Allies | -11 -10 -9 -------- Run | Yrd Mat Mat Total Allies . | . . . Largest Group . | . . . Highest-Rated Group . | . . . Highest-Rated Ally . | . . . Total Orders . | . . . Ally Attacks . | . . . Total Damage . | . . . Kills . | . . . Allies Corrupted . | . . . Allies Melted . | . . . Intel | -11 -10 -9 ------- Run | Yrd Mat Mat Robot Analysis Total . | . . . Derelict Logs Recovered . | . . . Drone Launches . | . . . Drone Recoveries . | . . . Exploration | -11 -10 -9 ------------- Run | Yrd Mat Mat Turns Passed 742 | 59 477 206 Spaces Moved 391 | 35 250 106 Core 62 | 8 . 54 Treads 329 | 27 250 52 Legs . | . . . Wheels . | . . . Hover . | . . . Flight . | . . . Fastest Speed 50 | 50 160 100 Average Speed 152 | 134 160 141 Slowest Speed 350 | 160 160 350 Overloaded Moves . | . . . Propulsion Burnouts . | . . . Robots Hopped . | . . . Cave-ins Triggered . | . . . Exploration Rate (%) 15 | 3 31 13 Regions Visited 2 Branch Regions . Pre-discovered Areas . | . . . Known Exits Taken . | . . . Unknown Exits Taken 2 | 1 1 . Scrap Searched . | . . . Spaces Dug 17 | . 17 . Terrain Destroyed 156 | . 105 51 Melee . | . . . Projectile . | . . . AOE 156 | . 105 51 Terrain Rammed . | . . . Walls Destroyed . | . . . Machines Disabled . | . . . Actions | -11 -10 -9 --------- Run | Yrd Mat Mat Total 486 | 47 292 147 Wait 25 | 3 4 18 Move 389 | 34 249 106 Hop . | . . . Pick Up 16 | 6 8 2 Fast Attach . | . . . Attach 13 | 4 4 5 Detach 1 | . 1 . Swap 4 | . 4 . Drop 4 | . 3 1 Fire 25 | . 17 8 Melee . | . . . Ram 5 | . . 5 Kick . | . . . Crush 4 | . 2 2 Escape Stasis . | . . . Rewire . | . . . Trap . | . . . Miscellaneous . | . . . Route ------- -11/Scrapyard -10/Materials -9/Materials History --------- Turn | Location | Event 32 | -11/Scrapyard | Discovered new exit (range 14) 60 | -11/Scrapyard | Entered Materials 281 | -10/Materials | Discovered new exit (range 7) 309 | -10/Materials | Build established: Mutant 537 | -10/Materials | Entered another Materials area 537 | -9/Materials | Evolved 2 slots: Power x1, Propulsion x1 721 | -9/Materials | Core integrity fell below 50% 740 | -9/Materials | Core integrity fell below 20% 743 | -9/Materials | Destroyed self with Mini Grenade Launcher Last Messages --------------- K-01 Serf collects debris. G-47 Trooper destroyed. G-34 Mercenary destroyed. K-01 Serf destroyed. Y-45 Defender destroyed. Critical hit (Burn: +37). The unstable cave ceiling collapses. Slammed into B-36 Bruiser. Lgt. Ion Engine destroyed. The unstable cave ceiling collapses. Grenade Launcher destroyed. System corrupted by crushing effect (+1). Acquired 23 matter. Med. Armor Plating destroyed. B-36 Bruiser destroyed. R-06 Scavenger destroyed. The unstable cave ceiling collapses. Y-45 Defender destroyed. Sml. Storage Unit destroyed. Destroyed Sml. Storage Unit. Map ----- +----------------------------------------------------+ | | | | | | | | | | | | | | | | | | | | | | | | | | | ??????????????????????????????? | | ??????????????????????????????? | | ??????????????????????????????? | | ??????????????????????????????? | | ??????????????????????????????? | | ??????????????????????????????? | | ???????????????#######????????? | | ???????????????# ]]]##?###### | | ???????????????+ ]] ## # | | ???????????????# ]] # # | | ???????????????# [ # | | ???????????????# * # | | ???????????????# ! g @/ | | ???????????????#+### | | ???????????????# #?# | | ????????#??????# #?# % | | ????????# ???### ### %%[ | | ???###### ### ## ! | | | | T # # | | ??############ #### ### ### | | ?????#!! ????## ##########+#?? | | ?????#!! ?##### # #? | | ?????#== ##"T"# + """ ??? | | ?????#== # """"" ??? | | ?????#]] # """?" ??? | | ?????#]] """ #? """?? ??? | | ?????##### "R" #? ""?????? | | ?????????# " "" #?? ????? | | #####????# " "#???#####????? | | ###### " #####????????? | | #????????? | | ] #????????? | | [== #????????? | | ####### #####+##????????? | | #/###?????# #???????????????? | | #??????# #???????????????? | +----------------------------------------------------+ Best States ------------- Heat Dissipation 28 Energy Generation 10 Energy Capacity 125 Matter Stores 282 Matter Capacity 300 Sight Range 16 Terrain Scan Density 10 Armor Coverage 225 Evasion (%) 40 Recoil Reduction 2 Item Schematics ----------------- None Robot Schematics ------------------ None Fabricated ------------ Nothing Alien Tech Used ----------------- None Achievements -------------- None Challenges ------------ None Game ------ Seed HoverMultitargetingFlail Manual? 0 Play Time 00:09:17 Cumulative 4.6 hours Start 2025.01.16 @ 23:29:22 End 2025.01.16 @ 23:36:39 Sessions 1 Manual Loads 0 Difficulty Rogue Special Mode None Game No. 15 Rogue 15 Adventurer 0 Explorer 0 Win Type - Total 0 Types 0/0/0/0/0/0/0/0/0 Lore% 1 Gallery% 9 Achievement% 9 Wizard Run 0 Options --------- Layout 1 ASCII 0 Keyboard 0 Movement Mouse Keybinds 0 Fullscreen 1 Font 24/Smallcaps Map View 50x40 Zoom Use 36% Tactical HUD 0 Map Filters NONE Filters NONE Steam 1 RUN: 1cf8434f-6557-4a14-b614-e0568d373a6f